bitfinex/quotes_SOLUSD_20251226
["timestamp","ask_amount","ask_price","bid_price","bid_amount"]
[1766710869076,0.68,120.39,120.36,0.67]
[1766710870171,0.68,120.39,120.37,8.30771786]
[1766710871099,0.68,120.39,120.36,8.95514576]
[1766710871389,4.2657928,120.38,120.34,8.30936016]
[1766710871592,0.68,120.38,120.34,3.5857928]
[1766710871955,0.68,120.38,120.35,8.30858081]
[1766710872190,0.68,120.38,120.35,8.97858081]
[1766710872369,3.5857928,120.39,120.35,12.56437361]
[1766710872689,14.77621752,120.43,120.38,0.67]
[1766710872859,5.58533482,120.42,120.38,3.5857928]
[1766710873178,3.5857928,120.43,120.39,0.67]
[1766710873364,3.5857928,120.42,120.39,0.67]
[1766710874292,0.7,120.41,120.38,0.69]
[1766710874487,0.7,120.41,120.38,4.2757928]
[1766710874677,0.7,120.41,120.38,12.58251535]
[1766710875191,0.7,120.42,120.39,0.69]
[1766710876197,0.7,120.42,120.37,20.76835911]
[1766710876198,0.7,120.42,120.37,4.2757928]
[1766710876377,0.7,120.41,120.38,8.30702774]
[1766710876681,0.7,120.41,120.38,0.69]
[1766710877264,0.7,120.41,120.35,11.12767296]
[1766710877465,0.7,120.38,120.34,12.58549832]
[1766710877657,0.7,120.38,120.35,8.30902826]
[1766710877860,15.88,120.4,120.37,0.69]
[1766710878580,19.4657928,120.4,120.36,12.58399501]
[1766710878758,0.7,120.39,120.36,8.99820221]
[1766710879564,0.7,120.39,120.35,3.5857928]
[1766710879759,0.7,120.39,120.35,4.2757928]
[1766710880081,18.7657928,120.4,120.36,0.69]
[1766710880280,19.4657928,120.4,120.36,0.69]
[1766710880483,18.7657928,120.4,120.36,0.69]
[1766710880790,0.7,120.39,120.36,0.69]
[1766710881277,0.7,120.38,120.35,0.69]
[1766710882189,0.7,120.37,120.33,19.43799685]
[1766710882387,0.7,120.35,120.31,12.58736844]
[1766710882589,0.7,120.34,120.31,9.00157564]
[1766710882789,4.2857928,120.34,120.31,0.69]
[1766710883172,0.7,120.34,120.31,0.69]
[1766710883372,0.7,120.34,120.31,9.00164441]
[1766710884683,4.2857928,120.36,120.32,0.69]
[1766710885276,0.7,120.36,120.32,3.5857928]
[1766710885474,0.7,120.37,120.33,0.69]
[1766710886273,4.2857928,120.37,120.33,9.0004125]
[1766710886993,0.7,120.36,120.33,9.0004125]
[1766710887187,4.2857928,120.37,120.34,0.69]
[1766710887565,0.7,120.37,120.34,0.69]
[1766710887772,4.2857928,120.37,120.34,0.69]
[1766710888372,0.7,120.37,120.34,0.69]
[1766710888567,19.4657928,120.38,120.34,0.69]
[1766710888773,0.7,120.37,120.34,0.69]
[1766710891289,0.7,120.37,120.33,11.8962053]
[1766710891496,4.2857928,120.36,120.3,15.18]
[1766710891698,4.2857928,120.35,120.31,9.00176642]
[1766710891871,4.2857928,120.34,120.31,0.69]
[1766710892072,0.7,120.33,120.29,9.00323615]
[1766710892285,0.7,120.33,120.3,0.69]
[1766710892286,4.2857928,120.33,120.3,0.69]
[1766710893596,0.7,120.33,120.3,0.69]
[1766710894099,4.2857928,120.34,120.3,0.69]
[1766710895993,0.7,120.33,120.3,0.69]
[1766710896300,4.2857928,120.33,120.3,0.69]
[1766710896601,0.7,120.33,120.3,0.69]
[1766710898303,3.5857928,120.34,120.3,0.69]
[1766710898502,0.7,120.34,120.3,0.69]
[1766710898724,3.5857928,120.34,120.3,0.69]
[1766710900079,4.2857928,120.34,120.3,0.69]
[1766710900279,0.7,120.33,120.3,0.69]
[1766710901704,0.7,120.33,120.3,9.00251348]
[1766710905403,2.99467989,120.33,120.3,0.69]
[1766710906409,2.29467989,120.33,120.3,0.69]
[1766710909508,0.72,120.34,120.3,0.69]
[1766710909690,0.72,120.34,120.3,9.00243865]
[1766710909890,3.01467989,120.35,120.32,0.69]
[1766710910104,105.42,120.37,120.32,0.69]
[1766710910404,0.72,120.37,120.34,0.69]
[1766710911194,3.01467989,120.38,120.34,0.69]
[1766710911800,3.01467989,120.38,120.35,0.69]
[1766710912202,15.9,120.39,120.35,0.69]
[1766710912384,0.72,120.38,120.35,0.69]
[1766710914804,0.72,120.38,120.35,8.99902247]
[1766710915606,2.29467989,120.36,120.31,0.69]
[1766710915799,3.01467989,120.34,120.31,9.00169163]
[1766710915992,3.01467989,120.34,120.31,0.69]
[1766710916190,15.18,120.36,120.3,25.78705352]
[1766710916191,0.72,120.35,120.3,25.78705352]
[1766710916390,0.72,120.34,120.3,11.29705352]
[1766710916791,3.01467989,120.34,120.3,11.29705352]
[1766710917091,0.72,120.34,120.31,0.69]
[1766710917288,0.72,120.34,120.31,2.98467989]
[1766710917493,0.72,120.35,120.31,2.98467989]
[1766710917700,0.72,120.35,120.32,0.69]
[1766710917900,0.72,120.35,120.31,2.29467989]
[1766710918100,0.72,120.35,120.31,2.98467989]
[1766710918311,0.72,120.35,120.31,11.29608508]
[1766710918809,3.01467989,120.33,120.3,8.31225178]
[1766710919032,0.72,120.33,120.3,9.00225178]
[1766710919902,3.01467989,120.34,120.3,9.00225178]
[1766710921310,0.72,120.34,120.3,8.31225178]
[1766710921501,3.01467989,120.34,120.31,0.69]
[1766710924023,0.72,120.33,120.3,8.31225178]
[1766710924318,0.72,120.33,120.3,9.00225178]
[1766710926120,0.72,120.36,120.31,0.69]
[1766710926298,3.01467989,120.35,120.31,0.69]
[1766710926908,0.72,120.35,120.32,0.69]
[1766710927520,0.72,120.37,120.34,2.98467989]
[1766710927731,0.72,120.39,120.3,29.09363166]
[1766710927902,2.29467989,120.35,120.31,0.69]
[1766710928097,2.29467989,120.35,120.31,8.31159436]
[1766710928312,2.29467989,120.35,120.32,0.69]
[1766710929029,0.72,120.34,120.31,9.00159436]
[1766710929216,0.72,120.34,120.3,11.29707911]
[1766710929408,3.01467989,120.34,120.3,9.00239922]
[1766710929929,0.72,120.34,120.3,10.60707911]
[1766710930106,0.72,120.34,120.31,0.69]
[1766710930731,3.01467989,120.34,120.31,0.69]
[1766710931232,0.72,120.34,120.31,0.69]
[1766710931433,3.01467989,120.34,120.31,0.69]
[1766710931815,3.01467989,120.35,120.32,0.69]
[1766710932627,0.72,120.35,120.32,0.69]
[1766710933309,0.72,120.35,120.32,9.00099404]
[1766710934427,2.96467989,120.36,120.32,0.72]
[1766710934819,0.67,120.36,120.32,0.72]
[1766710935015,2.96467989,120.36,120.32,0.72]
[1766710936935,2.96467989,120.36,120.32,9.03079521]
[1766710937132,2.96467989,120.36,120.33,0.72]
[1766710937814,2.96467989,120.36,120.32,9.03079521]
[1766710938420,15.18,120.37,120.32,9.03079521]
[1766710938421,2.96467989,120.35,120.32,0.72]
[1766710939443,2.96467989,120.35,120.32,9.03096875]
[1766710940628,2.96467989,120.35,120.32,9.0309734]
[1766710940949,0.67,120.35,120.32,9.0309734]
[1766710941447,15.18,120.37,120.33,0.72]
[1766710941654,2.96467989,120.37,120.33,0.72]
[1766710942247,2.96467989,120.36,120.33,0.72]
[1766710942616,0.67,120.36,120.33,0.72]
[1766710943122,10.43767296,120.39,120.33,0.72]
[1766710943434,0.67,120.4,120.37,0.72]
[1766710944239,23.48302883,120.44,120.37,0.72]
[1766710944420,2.96467989,120.41,120.37,0.72]
[1766710944927,2.29467989,120.41,120.37,0.72]
[1766710945232,0.67,120.43,120.37,0.72]
[1766710945437,2.96467989,120.41,120.37,9.02720664]
[1766710946345,0.67,120.41,120.39,2.29467989]
[1766710947746,0.67,120.41,120.38,9.02664262]
[1766710948036,0.67,120.43,120.4,2.29467989]
[1766710948444,0.67,120.43,120.39,2.29467989]
[1766710949230,0.67,120.43,120.4,2.29467989]
[1766710949432,0.67,120.43,120.41,2.29467989]
[1766710952250,0.67,120.43,120.4,0.72]
[1766710952428,0.67,120.43,120.42,2.29467989]
[1766710953228,0.67,120.43,120.4,9.0254207]
[1766710953441,0.67,120.43,120.4,8.3054207]
[1766710953642,0.67,120.41,120.38,2.29467989]
[1766710953849,2.29467989,120.42,120.37,8.30742881]
[1766710953850,0.67,120.43,120.39,3.01467989]
[1766710954051,0.67,120.43,120.4,2.29467989]
[1766710954546,0.67,120.43,120.42,2.29467989]
[1766710954744,0.67,120.43,120.39,8.30566985]
[1766710954947,0.67,120.41,120.38,2.29467989]
[1766710955150,0.67,120.41,120.39,2.29467989]
[1766710956130,5.52305421,120.45,120.41,0.72]
[1766710956434,0.67,120.44,120.42,2.29467989]
[1766710958430,0.67,120.44,120.41,2.29467989]
[1766710960048,0.67,120.44,120.4,9.02509429]
[1766710960240,0.67,120.44,120.41,2.29467989]
[1766710962147,0.67,120.44,120.4,2.29467989]
[1766710963868,0.67,120.44,120.4,10.60023884]
[1766710964051,0.67,120.44,120.4,11.88467759]
[1766710965355,0.67,120.44,120.4,12.59467759]
[1766710967345,0.67,120.44,120.41,3.57911864]
[1766710967741,0.67,120.44,120.4,12.59467759]
[1766710968949,0.67,120.44,120.41,3.57911864]
[1766710969372,0.67,120.44,120.4,9.01555895]
[1766710969566,0.67,120.44,120.41,3.57911864]
[1766710970768,5.56305421,120.45,120.42,0.71]
[1766710970977,0.71,120.44,120.41,12.5939301]
[1766710972470,5.56305421,120.45,120.42,4.28911864]
[1766710973372,0.71,120.44,120.41,4.28911864]
[1766710973795,0.71,120.44,120.4,9.01533304]
[1766710974070,0.71,120.44,120.41,3.57911864]
[1766710975576,0.71,120.44,120.41,11.8840252]
[1766710976773,0.71,120.44,120.41,12.5940252]
[1766710976970,0.71,120.44,120.41,3.57911864]
[1766710977180,0.71,120.44,120.41,4.28911864]
[1766710978358,0.71,120.44,120.41,12.59406287]
[1766710980681,0.71,120.44,120.42,3.57911864]
[1766710980977,0.71,120.44,120.42,4.28911864]
[1766710981382,4.85305421,120.45,120.43,0.71]
[1766710981682,4.85305421,120.45,120.43,0.65900001]
[1766710986386,5.56305421,120.45,120.41,4.28911864]
[1766710986559,5.56305421,120.45,120.41,12.59399079]
[1766710986758,4.85305421,120.45,120.42,4.28911864]
[1766710987081,4.85305421,120.45,120.43,0.71]
[1766710987761,4.85305421,120.45,120.41,11.88399079]
[1766710987762,0.71,120.44,120.41,11.88399079]
[1766710987963,0.71,120.44,120.41,12.59399079]
[1766710989567,0.71,120.44,120.42,3.57911864]
[1766710991188,4.85305421,120.45,120.44,0.71]
[1766710991393,10.43767296,120.47,120.45,0.71]
[1766710991701,5.59372634,120.46,120.44,3.57911864]
[1766710991863,5.59372634,120.46,120.44,4.28911864]
[1766710992067,11.14767296,120.47,120.44,4.28911864]
[1766710992364,0.71,120.47,120.45,3.57911864]
[1766710993284,0.71,120.47,120.44,9.01269916]
[1766710993466,0.71,120.47,120.45,3.57911864]
[1766710993870,0.71,120.47,120.44,3.57911864]
[1766710994763,0.71,120.47,120.44,11.88186844]
[1766710994970,0.1,120.48,120.45,4.24911864]
[1766710995165,5.69298772,120.48,120.45,3.57911864]
[1766710995369,0.67,120.46,120.42,12.55335284]
[1766710995591,0.67,120.46,120.43,3.57911864]
[1766710996188,0.67,120.46,120.42,0.67]
[1766710996492,0.67,120.46,120.43,3.57911864]
[1766710997065,3.57911864,120.44,120.39,8.97621272]
[1766710997268,0.67,120.42,120.39,12.55533136]
[1766710997691,0.67,120.42,120.4,3.57911864]
[1766710998192,0.67,120.44,120.41,3.57911864]
[1766710998394,0.67,120.43,120.4,3.57911864]
[1766710999092,0.67,120.43,120.39,12.55533136]
[1766711000072,0.67,120.44,120.41,4.24911864]
[1766711004801,0.67,120.44,120.41,0.67]
[1766711006100,0.67,120.44,120.41,4.24911864]
[1766711006599,0.67,120.44,120.41,0.67]
[1766711008099,3.57911864,120.43,120.38,11.10767296]
[1766711008394,0.67,120.38,120.35,0.67]
[1766711010897,0.67,120.41,120.37,4.24911864]
[1766711011203,5.59112421,120.4,120.37,4.24911864]
[1766711012202,0.67,120.41,120.37,4.24911864]
[1766711012682,0.67,120.41,120.37,3.57911864]
[1766711012881,0.67,120.41,120.37,4.24911864]
[1766711013292,0.67,120.41,120.37,11.88646639]
[1766711013478,0.67,120.41,120.38,0.67]
[1766711014488,0.67,120.41,120.38,8.97693803]
[1766711014903,0.67,120.41,120.38,0.67]
[1766711018183,4.24911864,120.41,120.38,0.67]
[1766711018484,0.67,120.4,120.37,0.67]
[1766711018686,0.67,120.4,120.36,12.55732499]
[1766711020091,4.24911864,120.4,120.36,8.97820635]
[1766711020422,0.67,120.37,120.32,24.94698765]
[1766711020717,0.67,120.32,120.27,0.67]
[1766711020882,0.67,120.31,120.27,3.57911864]
[1766711021084,0.67,120.34,120.3,3.57911864]
[1766711021387,4.24911864,120.32,120.28,0.67]
[1766711021915,0.67,120.32,120.28,12.56302398]
[1766711022611,0.67,120.32,120.28,8.98390534]
[1766711022813,0.67,120.32,120.28,12.56302398]
[1766711023899,0.67,120.32,120.28,11.27884095]
[1766711024298,0.67,120.32,120.28,8.98390534]
[1766711024604,0.67,120.32,120.28,11.27884095]
[1766711026429,0.67,120.32,120.28,8.98390534]
[1766711027505,2.96493561,120.32,120.28,8.98390534]
[1766711029415,2.96493561,120.32,120.28,0.67]
[1766711030730,0.72,120.34,120.29,0.67]
[1766711031025,106.99493561,120.35,120.28,8.31360789]
[1766711031026,3.01493561,120.33,120.3,0.67]
[1766711031207,0.72,120.33,120.3,0.67]
[1766711031403,3.01493561,120.33,120.3,0.67]
[1766711031802,0.72,120.33,120.3,0.67]
[1766711032627,3.01493561,120.33,120.3,0.67]
[1766711034134,0.72,120.33,120.3,0.67]
[1766711034308,3.01493561,120.33,120.3,0.67]
[1766711036732,0.72,120.33,120.3,0.67]
[1766711044919,3.01493561,120.33,120.3,0.67]
[1766711051132,113.00909982,120.35,120.29,0.67]
[1766711051133,3.01493561,120.32,120.29,0.67]
[1766711051329,0.72,120.32,120.29,0.67]
[1766711057348,3.01493561,120.32,120.29,0.67]
[1766711062449,0.72,120.32,120.29,0.67]
[1766711064759,0.71,120.29,120.25,0.2]
[1766711065057,0.71,120.27,120.25,0.2]
[1766711065558,0.71,120.27,120.25,0.89]
[1766711068438,15.18,120.3,120.26,0.69]
[1766711068632,5.59779455,120.29,120.27,0.69]
[1766711070835,6.30779455,120.29,120.26,0.69]
[1766711071035,0.71,120.29,120.26,0.69]
[1766711073959,13.44260857,120.31,120.27,0.69]
[1766711074146,5.59218912,120.3,120.27,0.69]
[1766711074336,6.30218912,120.3,120.27,0.69]
[1766711074532,0.71,120.3,120.27,0.69]
[1766711074752,0.71,120.32,120.29,0.69]
[1766711075053,106.99493561,120.33,120.29,0.69]
[1766711075354,5.59089954,120.32,120.29,0.69]
[1766711075563,5.59089954,120.32,120.3,0.69]
[1766711075733,5.59089954,120.32,120.29,0.69]
[1766711076059,6.30089954,120.32,120.29,0.69]
[1766711076257,0.71,120.32,120.29,0.69]
[1766711076647,0.71,120.32,120.28,11.12767296]
[1766711076648,2.29493561,120.32,120.28,11.12767296]
[1766711076847,0.71,120.31,120.28,11.12767296]
[1766711077156,0.71,120.31,120.28,19.44153134]
[1766711078042,0.71,120.31,120.28,21.73646695]
[1766711079340,0.71,120.31,120.29,0.69]
[1766711081766,2.29493561,120.3,120.26,0.71]
[1766711081971,0.72,120.28,120.25,0.91]
[1766711082682,3.01493561,120.27,120.25,0.2]
[1766711085961,4.30927228,120.27,120.25,0.2]
[1766711088071,23.49348573,120.29,120.23,0.11]
[1766711088072,0.68,120.26,120.23,0.11]
[1766711088372,4.26927228,120.26,120.23,0.11]
[1766711088674,0.68,120.25,120.23,0.11]
[1766711091172,8.31393415,120.28,120.23,0.11]
[1766711091380,0.68,120.26,120.23,0.83]
[1766711094463,4.26927228,120.26,120.23,0.83]
[1766711097366,3.58927228,120.26,120.23,0.83]
[1766711097566,4.26927228,120.26,120.23,0.83]
[1766711099588,4.26927228,120.25,120.23,0.11]
[1766711099884,0.68,120.25,120.23,0.11]
[1766711102159,0.68,120.25,120.23,0.83]
[1766711103182,113.01404543,120.28,120.23,0.83]
[1766711103383,9.17254678,120.27,120.23,0.83]
[1766711103590,0.68,120.26,120.23,0.83]
[1766711104589,113.01404543,120.28,120.23,12.0164737]
[1766711104590,105.38,120.28,120.23,12.0164737]
[1766711104774,104.7,120.31,120.27,0.72]
[1766711105092,0.68,120.31,120.28,0.72]
[1766711105293,11.11767296,120.31,120.28,0.72]
[1766711105974,0.68,120.33,120.29,0.72]
[1766711106175,0.68,120.33,120.3,4.30927228]
[1766711106380,0.68,120.33,120.28,10.43767296]
[1766711106381,3.58927228,120.33,120.28,10.43767296]
[1766711106577,4.26927228,120.29,120.25,0.72]
[1766711106771,4.26927228,120.29,120.25,4.30927228]
[1766711106975,0.68,120.29,120.26,0.72]
[1766711107285,0.68,120.29,120.26,4.30927228]
[1766711107797,0.68,120.29,120.26,0.72]
[1766711108000,4.26927228,120.29,120.26,0.72]
[1766711108197,4.26927228,120.29,120.24,10.43767296]
[1766711108198,3.58927228,120.27,120.23,0.83]
[1766711108490,4.26927228,120.27,120.23,0.83]
[1766711109079,4.26927228,120.27,120.23,4.41927228]
[1766711109480,0.68,120.27,120.23,12.73657915]
[1766711109998,4.26927228,120.27,120.23,12.73657915]
[1766711110303,4.26927228,120.27,120.23,4.41927228]
[1766711110595,0.68,120.25,120.23,0.11]
[1766711110976,0.68,120.25,120.21,4.30927228]
[1766711111177,0.68,120.25,120.22,0.72]
[1766711111386,3.58927228,120.26,120.22,4.30927228]
[1766711111387,0.68,120.26,120.22,4.30927228]
[1766711111778,4.26927228,120.26,120.22,4.30927228]
[1766711113199,0.68,120.26,120.22,4.30927228]
[1766711113402,4.26927228,120.26,120.22,4.30927228]
[1766711115720,25.61767296,120.28,120.23,3.58927228]
[1766711115883,0.69,120.27,120.24,0.72]
[1766711116614,0.69,120.27,120.24,4.30927228]
[1766711119985,0.69,120.27,120.24,0.72]
[1766711120176,27.77637048,120.31,120.26,3.58927228]
[1766711120177,0.69,120.31,120.26,3.58927228]
[1766711120384,0.69,120.31,120.28,4.30927228]
[1766711120704,0.69,120.31,120.29,3.58927228]
[1766711121503,15.18,120.33,120.29,3.58927228]
[1766711121704,0.69,120.33,120.3,0.72]
[1766711122002,0.69,120.31,120.28,0.72]
[1766711122509,0.69,120.3,120.26,0.72]
[1766711122677,3.58927228,120.31,120.27,3.58927228]
[1766711122882,38.20830221,120.32,120.28,0.72]
[1766711123113,5.58668199,120.31,120.28,0.72]
[1766711123417,0.69,120.3,120.27,4.30927228]
[1766711123820,0.69,120.31,120.28,4.30927228]
[1766711124400,8.31078321,120.33,120.29,3.58927228]
[1766711124401,0.69,120.33,120.29,3.58927228]
[1766711124629,5.5881887,120.32,120.3,4.30927228]
[1766711124920,0.69,120.34,120.3,4.30927228]
[1766711125101,5.5888129,120.33,120.3,4.30927228]
[1766711125303,0.69,120.33,120.3,4.30927228]
[1766711126719,0.69,120.35,120.31,4.30927228]
[1766711126889,5.58629752,120.34,120.32,0.72]
[1766711127089,19.45927228,120.36,120.32,0.72]
[1766711127402,5.58391273,120.35,120.32,0.72]
[1766711127807,5.58391273,120.35,120.33,0.72]
[1766711127997,19.45927228,120.38,120.34,0.72]
[1766711128317,5.58266326,120.37,120.34,0.72]
[1766711128522,19.45927228,120.38,120.34,0.72]
[1766711128702,14.71694524,120.39,120.35,0.72]
[1766711128908,6.26789252,120.38,120.34,3.58927228]
[1766711129202,0.69,120.38,120.35,4.30927228]
[1766711129406,0.69,120.39,120.35,4.30927228]
[1766711129719,0.69,120.41,120.38,0.72]
[1766711129920,0.69,120.41,120.38,4.30927228]
[1766711130306,0.69,120.41,120.37,3.58927228]
[1766711130611,4.27927228,120.41,120.37,0.72]
[1766711130805,0.69,120.41,120.37,0.72]
[1766711131009,4.27927228,120.41,120.37,0.72]
[1766711131708,0.69,120.41,120.37,4.30927228]
[1766711132129,4.27927228,120.41,120.37,0.72]
[1766711132717,0.69,120.41,120.37,4.30927228]
[1766711133431,4.27927228,120.41,120.37,0.72]
[1766711134503,0.69,120.41,120.37,0.72]
[1766711134702,4.27927228,120.41,120.37,0.72]
[1766711135644,0.69,120.41,120.37,4.30927228]
[1766711135818,4.27927228,120.41,120.37,4.30927228]
[1766711139364,3.58927228,120.38,120.32,3.58927228]
[1766711139515,0.69,120.39,120.34,3.58927228]
[1766711139723,0.69,120.39,120.35,4.30927228]
[1766711139947,0.69,120.39,120.36,0.72]
[1766711142348,4.27927228,120.39,120.36,0.72]
[1766711142555,3.58927228,120.39,120.34,8.30977312]
[1766711142845,4.27927228,120.39,120.35,4.30927228]
[1766711143151,0.69,120.39,120.35,4.30927228]
[1766711143350,4.27927228,120.39,120.35,4.30927228]
[1766711143535,4.27927228,120.39,120.36,0.72]
[1766711143924,29.20694524,120.4,120.36,0.72]
[1766711144245,29.91694524,120.4,120.36,0.72]
[1766711148027,28.62001105,120.4,120.36,0.72]
[1766711148730,27.91001105,120.4,120.36,0.72]
[1766711149044,27.91001105,120.4,120.34,0.72]
[1766711149045,0.71,120.38,120.34,0.72]
[1766711149247,0.71,120.38,120.35,0.72]
[1766711149549,0.71,120.37,120.34,0.72]
[1766711149729,0.71,120.39,120.34,0.72]
[1766711150049,3.00233809,120.38,120.34,0.72]
[1766711150748,0.71,120.38,120.34,0.72]
[1766711151048,3.00233809,120.38,120.34,0.72]
[1766711152032,3.00233809,120.39,120.34,2.29233809]
[1766711152249,0.71,120.39,120.35,0.72]
[1766711152452,3.00233809,120.39,120.35,0.72]
[1766711153247,33.92351008,120.4,120.35,0.72]
[1766711153436,36.21584817,120.4,120.36,0.72]
[1766711154044,0.71,120.39,120.36,0.72]
[1766711155353,3.00233809,120.39,120.36,0.72]
[1766711157746,11.14767296,120.4,120.37,0.72]
[1766711159331,12.73001105,120.4,120.35,10.60133295]
[1766711159555,0.71,120.39,120.36,0.72]
[1766711159733,0.71,120.39,120.36,0.669]
[1766711161156,0.71,120.39,120.28,77.88]
[1766711161157,0.71,120.36,120.28,77.88]
[1766711161352,2.29233809,120.35,120.28,77.88]
[1766711161531,0.71,120.36,120.31,2.29233809]
[1766711161731,0.71,120.37,120.34,0.72]
[1766711161950,28.62001105,120.39,120.35,0.72]
[1766711162454,0.71,120.38,120.35,0.72]
[1766711162755,3.00233809,120.38,120.35,0.72]
[1766711162956,3.00233809,120.36,120.32,0.72]
[1766711163148,0.71,120.34,120.3,3.01233809]
[1766711163352,3.00233809,120.34,120.31,0.72]
[1766711163535,0.71,120.34,120.31,0.72]
[1766711164056,13.44001105,120.35,120.31,0.72]
[1766711165254,2.29233809,120.34,120.31,0.72]
[1766711165448,2.29233809,120.34,120.29,2.29233809]
[1766711165662,3.00233809,120.34,120.3,0.72]
[1766711167258,0.71,120.34,120.3,0.72]
[1766711167557,3.00233809,120.34,120.3,0.72]
[1766711167758,10.43767296,120.35,120.31,2.29233809]
[1766711167951,12.73001105,120.35,120.32,0.72]
[1766711168145,5.579026,120.34,120.32,0.72]
[1766711169741,6.289026,120.34,120.31,0.72]
[1766711169941,0.71,120.34,120.31,0.72]
[1766711170655,3.00233809,120.34,120.31,0.72]
[1766711173759,2.29233809,120.33,120.31,0.72]
[1766711173979,0.71,120.34,120.28,0.66]
[1766711173980,0.7,120.31,120.28,0.66]
[1766711174263,2.99233809,120.3,120.26,0.66]
[1766711175139,2.29233809,120.32,120.27,2.29233809]
[1766711175334,2.99233809,120.32,120.28,0.66]
[1766711176462,10.43767296,120.34,120.29,0.66]
[1766711176463,11.13767296,120.34,120.29,0.66]
[1766711176652,10.43767296,120.34,120.3,0.66]
[1766711177054,10.43767296,120.34,120.31,0.66]
[1766711179468,11.13767296,120.34,120.31,0.66]
[1766711180071,13.43001105,120.34,120.31,0.66]
[1766711182266,10.43767296,120.34,120.31,0.66]
[1766711184274,11.13767296,120.34,120.31,0.66]
[1766711184875,0.7,120.37,120.32,0.66]
[1766711185174,2.99233809,120.37,120.33,0.66]
[1766711185375,0.7,120.37,120.34,0.66]
[1766711186151,17.47233809,120.38,120.34,2.29233809]
[1766711186152,10.43767296,120.38,120.34,2.29233809]
[1766711186353,10.43767296,120.38,120.35,0.66]
[1766711186567,10.43767296,120.38,120.36,0.66]
[1766711186980,0.7,120.4,120.37,0.66]
[1766711187160,0.7,120.43,120.38,0.66]
[1766711187477,0.7,120.42,120.38,2.95233809]
[1766711187782,0.7,120.41,120.38,0.66]
[1766711189979,11.13767296,120.43,120.39,0.66]
[1766711190161,11.13767296,120.43,120.39,2.95233809]
[1766711191863,13.43001105,120.43,120.39,0.66]
[1766711192782,13.43001105,120.43,120.39,8.96631629]
[1766711192983,11.13767296,120.43,120.39,8.96631629]
[1766711193988,10.43767296,120.43,120.39,8.96631629]
[1766711194168,11.13767296,120.43,120.39,8.96631629]
[1766711194368,0.7,120.42,120.39,0.66]
[1766711197785,18.27233809,120.44,120.4,0.66]
[1766711197990,0.8,120.44,120.4,2.95233809]
[1766711198884,0.8,120.44,120.43,0.66]
[1766711198885,0.1,120.44,120.43,0.66]
[1766711199391,0.1,120.45,120.44,0.66]
[1766711199590,1e-08,120.45,120.44,8.9118894]
[1766711199773,1e-08,120.45,120.44,0.609]
[1766711201191,1e-08,120.45,120.44,8.9118894]
[1766711201596,1e-08,120.45,120.44,11.20422749]
[1766711204468,1e-08,120.45,120.44,8.9118894]
[1766711204668,1e-08,120.45,120.44,0.609]
[1766711204880,0.66000001,120.45,120.41,2.99233809]
[1766711205076,0.66,120.44,120.41,0.7]
[1766711205480,2.2923381,120.45,120.41,0.7]
[1766711205701,2.9523381,120.45,120.41,0.7]
[1766711206202,0.66000001,120.45,120.41,11.2971799]
[1766711206514,0.66000001,120.45,120.42,0.7]
[1766711207397,2.9523381,120.45,120.42,0.7]
[1766711207601,2.29233809,120.44,120.39,25.7584239]
[1766711207783,0.66,120.43,120.39,26.4584239]